Cogmind - Beta 9.4 @@@ ROGUE MODE // 2020.01.22 @ 10:58:39 Player: Pimski Result: Destroyed by 12-ASH with 12-ASH's Boomstick Performance ------------- Evolutions (1) 500 Regions Visited (6) 1200 Robots Destroyed (52) 260 Value Destroyed (1035) 1035 Prototype IDs (26) 520 Alien Tech Used (0) 0 Bonus (-87) -87 TOTAL SCORE: 3428 Bonus ------- High Alert Combat Kills 11 Follower Combat Kills 25 Aligned with FarCom 300 Friendly Fire -423 Cogmind --------- Core Integrity 0/400 Matter 263/300 Energy 85/100 System Corruption 0% Temperature Cool (6) Movement Rolling (130) Ox5 Location -8/Mines Parts ------- > --- POWER (1) -------- (None) > --- PROPULSION (2) --- Light Treads Wheel > --- UTILITY (4) ------ Large Storage Unit High-capacity Storage Unit Advanced Targeting Computer Advanced Weapon Cycler > --- WEAPON (2) ------- Heavy Assault Rifle 8R-AWN's Boregun > --- INVENTORY (18) --- Light Treads Advanced Myomer Leg Flying Fortress v7 Lightpack 2.0 Gravity Neutralizing Apparatus Experimental Sensor Array Makeshift Salvage Targeting Computer Experimental Targeting Computer Hacking Suite Hacking Suite Heavy Assault Rifle Rocket Launcher Katana Peak State ------------ > --- POWER ------------ (None) > --- PROPULSION ------- Light Treads Wheel > --- UTILITY ---------- Large Storage Unit High-capacity Storage Unit Advanced Targeting Computer Advanced Weapon Cycler > --- WEAPON ----------- Heavy Assault Rifle 8R-AWN's Boregun > --- INVENTORY -------- Light Treads Advanced Myomer Leg Flying Fortress v7 Lightpack 2.0 Gravity Neutralizing Apparatus Experimental Sensor Array Makeshift Salvage Targeting Computer Experimental Targeting Computer Hacking Suite Hacking Suite Heavy Assault Rifle Rocket Launcher Katana [Rating: 36] Favorites ----------- Power Light Ion Engine Engine Light Ion Engine Propulsion Light Treads Treads Light Treads Leg Aluminum Leg Wheel Wheel Utility Large Storage Unit Device Experimental Heat Sink Storage Large Storage Unit Processor Advanced Targeting Computer Protection Light Armor Plating Weapon Heavy Assault Rifle Energy Gun EM Pulse Gun Ballistic Gun Heavy Assault Rifle Launcher Rocket Launcher Slashing Weapon Axe Build | -11 -10 -10 -9 -9 -9 -8 ------- Run | Scr Mat Min Mat Min Exi Min Slots Evolved 2 | . . . 2 . . . Power . | . . . . . . . Propulsion . | . . . . . . . Utility 2 | . . . 2 . . . Weapon . | . . . . . . . Parts Attached 43 | 1 6 7 12 . 16 1 Power 3 | . 1 1 1 . . . Engine 3 | . 1 1 1 . . . Core . | . . . . . . . Reactor . | . . . . . . . Propulsion 12 | . 2 3 3 . 4 . Treads 10 | . 2 2 3 . 3 . Leg . | . . . . . . . Wheel 2 | . . 1 . . 1 . Hover . | . . . . . . . Flight . | . . . . . . . Utility 14 | . 3 1 3 . 6 1 Device 3 | . . . . . 2 1 Storage 6 | . 2 1 1 . 2 . Processor 1 | . . . 1 . . . Hackware . | . . . . . . . Protection 4 | . 1 . 1 . 2 . Artifact . | . . . . . . . Weapon 14 | 1 . 2 5 . 6 . Energy Gun . | . . . . . . . Energy Cannon . | . . . . . . . Ballistic Gun 11 | 1 . 2 5 . 3 . Ballistic Cannon . | . . . . . . . Launcher 1 | . . . . . 1 . Special Weapon . | . . . . . . . Impact Weapon . | . . . . . . . Slashing Weapon 2 | . . . . . 2 . Piercing Weapon . | . . . . . . . Special Melee Weapon . | . . . . . . . Unidentified Prototypes 3 | . . . . . 3 . Parts Lost 9 | . . 2 1 . 6 . Power 1 | . . . . . 1 . Propulsion 4 | . . 1 . . 3 . Utility 2 | . . . . . 2 . Weapon 2 | . . 1 1 . . . Highest Loss Streak 6 | . . 2 1 . 6 . Average Slot Usage (%) 97 | . 98 100 99 100 96 88 Engine 10 | . 14 14 11 11 9 . Treads 22 | . 26 27 21 22 21 11 Storage 26 | . 26 28 31 33 22 33 Processor 7 | . . . 10 11 11 11 Protection 4 | . . . . . 9 . Ballistic Gun 19 | . 28 28 22 22 11 22 Launcher 1 | . . . . . 3 . Slashing Weapon 2 | . . . . . 5 . Naked Turns . | . . . . . . . Heaviest Build 73 | 11 38 54 73 73 73 73 Greatest Support 52 | 20 40 40 40 40 52 10 Greatest Overweight (x) 7 | . . 2 1 1 7 7 Average Overweight (x) 1 | . . . 1 1 1 7 Largest Inventory Capacity 24 | 6 16 18 24 24 24 24 Average Capacity 18 | 6 14 16 23 24 18 23 Most Carried 24 | 6 16 18 24 24 24 24 Average Carried 18 | 6 13 16 23 24 17 23 Final Capacity 24 | 6 16 18 24 24 24 18 Final Carried 24 | 6 16 18 24 24 24 17 Class Distribution -------------------- 48% | Hauler-Mutant 46% | Mutant 5% | Scavenger-Mutant Dominant Class ---------------- Mutant | -10/Materials Mutant | -10/Mines Hauler-Mutant | -9/Materials Hauler-Mutant | -9/Mines Mutant | -9/Exiles Hauler-Mutant | -8/Mines Resources | -11 -10 -10 -9 -9 -9 -8 ----------- Run | Scr Mat Min Mat Min Exi Min Matter Collected 1289 | 219 183 144 512 18 213 . Remotely . | . . . . . . . Salvage Created 1691 | 80 247 69 1126 45 124 . Parts 92 | 1 13 8 58 6 6 . Haulers Intercepted 3 | . 1 . 2 . . . Recyclers Shooed 3 | . 1 1 1 . . . Parts Field Recycled . | . . . . . . . Retrieved Matter . | . . . . . . . Parts Self-Destructed . | . . . . . . . Prevented . | . . . . . . . Kills | -11 -10 -10 -9 -9 -9 -8 ------- Run | Scr Mat Min Mat Min Exi Min Combat Hostiles Destroyed 37 | . 6 4 18 3 6 . Melee 1 | . . . . . 1 . Guns 31 | . 6 4 18 3 . . AOE 5 | . . . . . 5 . Classes Destroyed 10 | 1 4 . 4 . 1 . Worker 4 | . 1 . 3 . . . Tunneler 1 | . . . 1 . . . Hauler 3 | . 1 . 2 . . . Recycler 3 | 1 . . 2 . . . Watcher 2 | . . . 2 . . . Swarmer 8 | . 2 3 . 3 . . Grunt 15 | . 4 1 10 . . . Duelist 2 | . . . 2 . . . Sentry 6 | . . . 6 . . . Assembled 7 | . . . . . 7 . Best Kill Streak 6 | 1 2 3 6 3 5 . Combat Bots Only 5 | . 2 3 4 3 5 . Max Kills in Single Turn 3 | 1 1 1 2 1 3 . Gunslinging . | . . . . . . . Exploded 3 | . . . . . 3 . Melee 1 | . . . . . 1 . Uniques/NPCs Destroyed 1 | . . . . . 1 . 8R-AWN (-9/Exiles) Combat | -11 -10 -10 -9 -9 -9 -8 -------- Run | Scr Mat Min Mat Min Exi Min Damage Taken 2294 | . 227 353 783 51 707 173 Core 468 | . 24 42 160 10 192 40 Absorbed by Shields . | . . . . . . . Core Remaining (%) 86 | 100 . 73 . . . . Volleys Fired 125 | 3 37 16 60 3 3 3 Largest 2 | 2 2 2 2 2 1 2 Hottest 60 | 60 40 40 48 46 33 53 Shots Fired 246 | 6 74 32 119 6 3 6 Gun 243 | 6 74 32 119 6 . 6 Cannon . | . . . . . . . Launcher 3 | . . . . . 3 . Special . | . . . . . . . Kinetic 240 | 3 74 32 119 6 . 6 Thermal . | . . . . . . . Explosive 3 | . . . . . 3 . Electromagnetic 3 | 3 . . . . . . Robot Hit Streak 30 | 2 17 8 30 4 2 5 Robot Miss Streak 3 | 1 3 2 2 2 1 2 Penetration Max . | . . . . . . . Secondary Targets 2 | . . . 1 1 . . Max Gunslinging Chain 1 | . . . 1 1 . . Shots Hit Robots 212 | 3 50 24 98 4 29 4 Core Hits 86 | 2 13 6 45 4 16 . Critical Hits 3 | . 1 . . . 1 1 Critical Kills . | . . . . . . . Critical Parts Destroyed 2 | . 1 . . . . 1 Melee Attacks 32 | . . . . . 32 . Impact . | . . . . . . . Slashing 32 | . . . . . 32 . Piercing . | . . . . . . . Sneak Attacks . | . . . . . . . Combat Hostiles . | . . . . . . . Follow-up Attacks 6 | . . . . . 6 . Damage Inflicted 4266 | 55 548 274 1787 85 1450 67 Guns 2775 | 55 548 259 1765 81 . 67 Cannons . | . . . . . . . Explosions 491 | . . . . . 491 . Melee 959 | . . . . . 959 . Ramming 41 | . . 15 22 4 . . Kinetic 2732 | 12 548 259 1765 81 . 67 Thermal . | . . . . . . . Explosive 491 | . . . . . 491 . Electromagnetic 43 | 43 . . . . . . Impact . | . . . . . . . Slashing 959 | . . . . . 959 . Piercing . | . . . . . . . Highest Corruption 2 | . 2 2 . . . . Average Corruption 2 | . 2 2 . . . . Corruption Purged . | . . . . . . . Effects 14 | . 1 13 . . . . Message Errors 4 | . . 4 . . . . Heat Flow Errors 2 | . 1 1 . . . . Energy Discharges 6 | . . 6 . . . . Data Loss (minor) 2 | . . 2 . . . . Overload Shots . | . . . . . . . Overflow Damage 41 | . . . 1 . 40 . Projectiles . | . . . . . . . Explosions 40 | . . . . . 40 . Melee 1 | . . . 1 . . . Knockbacks . | . . . . . . . Impact . | . . . . . . . Kinetic . | . . . . . . . Secondary . | . . . . . . . Self-Inflicted Damage . | . . . . . . . Shots . | . . . . . . . Rammed 7 | . . 1 5 1 . . Targets Rammed 7 | . . 1 5 1 . . Kicked . | . . . . . . . Crushed . | . . . . . . . Highest Temperature 193 | 20 193 154 6 7 . 10 Average Temperature 32 | 15 43 47 2 7 . 8 Received Heat Transfer 414 | . 84 30 288 . . 12 Siege Activations . | . . . . . . . Robots Corrupted . | . . . . . . . Combat Hostiles . | . . . . . . . Parts Fried . | . . . . . . . Impact Corruptions 1 | . . . 1 . . . Robots Melted . | . . . . . . . Combat Hostiles . | . . . . . . . Parts Melted . | . . . . . . . Heat Transferred . | . . . . . . . Parts Sabotaged . | . . . . . . . Parts Stolen . | . . . . . . . Parts Stripped . | . . . . . . . Power Chain Reactions . | . . . . . . . Missiles Intercepted . | . . . . . . . Alert | -11 -10 -10 -9 -9 -9 -8 ------- Run | Scr Mat Min Mat Min Exi Min Peak Influence 416 | 5 191 85 416 151 . 1 Average Influence 89 | 3 89 29 134 150 . . Maximum Alert Level 2 | . . . 2 . . . Low Security (%) 91 | 100 100 100 75 100 . 100 Level 1 6 | . . . 19 . . . Level 2 1 | . . . 4 . . . Level 3 . | . . . . . . . Level 4 . | . . . . . . . Level 5 . | . . . . . . . High Security . | . . . . . . . Max Security . | . . . . . . . Squads Dispatched 4 | . 1 1 2 . . . Investigation 2 | . 1 1 . . . . Extermination . | . . . . . . . Reinforcement 2 | . . . 2 . . . Assault . | . . . . . . . Garrison . | . . . . . . . Intercept . | . . . . . . . Construction Impeded 1 | . . . 1 . . . Haulers Reinforced . | . . . . . . . Stealth | -11 -10 -10 -9 -9 -9 -8 --------- Run | Scr Mat Min Mat Min Exi Min Distress Signals . | . . . . . . . Communications Jammed . | . . . . . . . Distress Signals . | . . . . . . . Times Spotted 57 | . 9 9 30 2 6 1 Peak Tracking Total 7 | . 3 3 6 2 7 1 Tactical Retreats 5 | . 2 1 2 . . . Traps | -11 -10 -10 -9 -9 -9 -8 ------- Run | Scr Mat Min Mat Min Exi Min Traps Triggered 1 | . 1 . . . . . Indirectly . | . . . . . . . Trap Hack Attempts . | . . . . . . . Triggered . | . . . . . . . Disarmed . | . . . . . . . Reprogrammed . | . . . . . . . Reused . | . . . . . . . Traps Extracted . | . . . . . . . Installed . | . . . . . . . Triggered . | . . . . . . . Machines | -11 -10 -10 -9 -9 -9 -8 ---------- Run | Scr Mat Min Mat Min Exi Min Machines Disabled 3 | . . . . . 3 . Max in Single Turn 1 | . . . . . 1 . Machines Sabotaged . | . . . . . . . Garrisons Compromised . | . . . . . . . Overloaded Fab Kills . | . . . . . . . Fab Network Shutdowns . | . . . . . . . Hacking | -11 -10 -10 -9 -9 -9 -8 --------- Run | Scr Mat Min Mat Min Exi Min Machines Accessed 9 | . 2 1 4 . 2 . Terminals 4 | . 2 . 2 . . . Fabricators . | . . . . . . . Repair Stations 1 | . . . 1 . . . Recycling Units . | . . . . . . . Scanalyzers 1 | . . . 1 . . . Garrison Access . | . . . . . . . Total Hacks 24 | . 5 1 16 . 2 . Successful 18 | . 2 1 13 . 2 . Failed 5 | . 2 . 3 . . . Catastrophic 1 | . . . 1 . . . Database Lockouts 1 | . 1 . . . . . Manual 10 | . 4 . 5 . 1 . Terminals 10 | . 5 . 5 . . . Fabricators . | . . . . . . . Repair Stations 5 | . . . 5 . . . Recycling Units . | . . . . . . . Scanalyzers 6 | . . . 6 . . . Garrison Access . | . . . . . . . Terminal Hacks 7 | . 2 1 2 . 2 . Record 1 | . . . . . 1 . Robot Analysis 1 | . 1 . . . . . Open Door 1 | . . 1 . . . . Branch Access Points 2 | . 1 . 1 . . . Unreport Threat 1 | . . . 1 . . . EX-Prototype ID Bank 1 | . . . . . 1 . Fabricator Hacks . | . . . . . . . Repair Station Hacks 4 | . . . 4 . . . Scan Component 2 | . . . 2 . . . Repair 2 | . . . 2 . . . Recycling Unit Hacks . | . . . . . . . Scanalyzer 6 | . . . 6 . . . Insert Component 3 | . . . 3 . . . Analyze 3 | . . . 3 . . . Garrison Access Hacks . | . . . . . . . Unauthorized Hacks 4 | . 1 . 3 . . . Terminals 1 | . . . 1 . . . Botnet 1 | . . . 1 . . . Fabricators . | . . . . . . . Repair Stations . | . . . . . . . Recycling Units . | . . . . . . . Scanalyzers . | . . . . . . . Garrison Access . | . . . . . . . Data Cores Recovered . | . . . . . . . Used . | . . . . . . . Hacking Detections 5 | . 2 . 3 . . . Full Trace Events . | . . . . . . . Feedback Events . | . . . . . . . Feedback Blocked . | . . . . . . . Robot Schematics Acquired . | . . . . . . . Robots Built . | . . . . . . . Matter . | . . . . . . . Time . | . . . . . . . Total Robot Build Rating . | . . . . . . . Part Schematics Acquired 2 | . . . 2 . . . Parts Built . | . . . . . . . Matter . | . . . . . . . Time . | . . . . . . . Total Part Build Rating . | . . . . . . . Parts Repaired 2 | . . . 2 . . . Time 52 | . . . 52 . . . Parts Recycled . | . . . . . . . Recycled Matter . | . . . . . . . Retrieved Matter . | . . . . . . . Retrieved Components . | . . . . . . . Parts Scanalyzed 2 | . . . 2 . . . Part Schematics Acquired 2 | . . . 2 . . . Parts Damaged . | . . . . . . . Bothacking | -11 -10 -10 -9 -9 -9 -8 ------------ Run | Scr Mat Min Mat Min Exi Min Used RIF Installer . | . . . . . . . Robots Hacked . | . . . . . . . Non-combat . | . . . . . . . Combat . | . . . . . . . Robot Hacks Applied . | . . . . . . . Relay Couplers Released . | . . . . . . . Robots Rewired . | . . . . . . . Allies Hacked . | . . . . . . . Hacks Repelled . | . . . . . . . Allies | -11 -10 -10 -9 -9 -9 -8 -------- Run | Scr Mat Min Mat Min Exi Min Total Allies 2 | . . 2 . . . . Largest Group 2 | . . 2 1 . . . Highest-Rated Group 46 | . . 46 15 . . . Highest-Rated Ally 31 | . . 31 15 . . . Total Orders . | . . . . . . . Ally Attacks 9 | . . 9 . . . . Total Damage 148 | . . 148 . . . . Kills 1 | . . 1 . . . . Allies Corrupted . | . . . . . . . Allies Melted . | . . . . . . . Intel | -11 -10 -10 -9 -9 -9 -8 ------- Run | Scr Mat Min Mat Min Exi Min Robot Analysis Total 1 | . 1 . . . . . Derelict Logs Recovered 2 | . . 1 . 1 . . Drone Launches . | . . . . . . . Drone Recoveries . | . . . . . . . Exploration | -11 -10 -10 -9 -9 -9 -8 ------------- Run | Scr Mat Min Mat Min Exi Min Turns Passed 4827 | 27 415 913 935 328 2156 53 Spaces Moved 2315 | 14 158 502 307 177 1126 31 Core . | . . . . . . . Treads 2150 | . 143 463 307 177 1060 . Legs 29 | 14 15 . . . . . Wheels 136 | . . 39 . . 66 31 Hover . | . . . . . . . Flight . | . . . . . . . Fastest Speed 120 | 120 120 120 180 180 140 150 Average Speed 173 | 120 156 165 180 180 177 150 Slowest Speed 180 | 120 160 180 180 180 180 150 Overloaded Moves . | . . . . . . . Propulsion Burnouts . | . . . . . . . Robots Hopped . | . . . . . . . Cave-ins Triggered . | . . . . . . . Exploration Rate (%) 43 | 3 37 95 29 57 68 14 Regions Visited 6 Branch Regions 4 Pre-discovered Areas 4 | . . 2 . 1 1 . Known Exits Taken 2 | . 1 . 1 . . . Unknown Exits Taken 4 | 1 . 1 . 1 1 . Scrap Searched 2 | . . 2 . . . . Spaces Dug . | . . . . . . . Terrain Destroyed 25 | . . . . . 23 2 Melee . | . . . . . . . Projectile 2 | . . . . . . 2 AOE 23 | . . . . . 23 . Actions | -11 -10 -10 -9 -9 -9 -8 --------- Run | Scr Mat Min Mat Min Exi Min Total 2872 | 17 261 556 575 180 1247 36 Wait 212 | . 41 12 151 . 8 . Move 2309 | 13 157 501 306 176 1125 31 Hop . | . . . . . . . Pick Up 81 | . 14 11 24 . 32 . Fast Attach 7 | . 2 . 1 . 4 . Attach 20 | . 2 3 5 . 9 1 Detach 2 | . . . . . 2 . Swap 16 | 1 2 4 6 . 3 . Drop 67 | . 6 8 17 . 35 1 Fire 125 | 3 37 16 60 3 3 3 Melee 26 | . . . . . 26 . Ram . | . . . . . . . Kick . | . . . . . . . Crush 7 | . . 1 5 1 . . Escape Stasis . | . . . . . . . Rewire . | . . . . . . . Trap . | . . . . . . . Miscellaneous . | . . . . . . . Route ------- -11/Scrapyard -10/Materials -10/Mines (discovered 2 exits: *Mat x2) -9/Materials -9/Mines -9/Exiles -8/Mines History --------- Turn | Location | Event 10 | -11/Scrapyard | Discovered new exit (range 1) 28 | -11/Scrapyard | Entered Materials 127 | -10/Materials | Identified exit to Mines 127 | -10/Materials | Central database locked down 307 | -10/Materials | Build established: Mutant 443 | -10/Materials | Entered Mines 444 | -10/Mines | Learned location of Storage (-7) 648 | -10/Mines | Assembled infested the area 653 | -10/Mines | Assisted by a Guerilla fighting off Assembled 840 | -10/Mines | Discovered new exit (range 6) 854 | -10/Mines | Met a Derelict shopkeep closing up shop 909 | -10/Mines | Found a damaged Exp. Sensor Array with a note attached 914 | -10/Mines | Found Prototype Device 965 | -10/Mines | Discovered new exit (range 11) 1078 | -10/Mines | Learned location of Zion (-7) 1356 | -10/Mines | Entered Materials 1356 | -9/Materials | Accompanied by 1 ally 1356 | -9/Materials | Evolved 2 slots: Utility x2 1564 | -9/Materials | Repaired Lgt. Armor Plating 1591 | -9/Materials | Repaired Lgt. Treads 1725 | -9/Materials | Build established: Hauler-Mutant 2158 | -9/Materials | Identified exit to Mines 2264 | -9/Materials | Identified Exp. Sensor Array 2291 | -9/Materials | Entered Mines 2612 | -9/Mines | Deemed a non-threat by the Exiles lab entrance 2612 | -9/Mines | Discovered new exit (range 5) 2619 | -9/Mines | Entered Exiles 2663 | -9/Exiles | Met 8R-AWN 2693 | -9/Exiles | Met EX-HEX 2760 | -9/Exiles | Met EX-DEC 2819 | -9/Exiles | Met EX-BIN 2844 | -9/Exiles | Aligned with FarCom system 2846 | -9/Exiles | Given EX-Vault access code 2888 | -9/Exiles | Opened EX-Vault 2901 | -9/Exiles | Found Flying Fortress v7 2906 | -9/Exiles | Found Lightpack 2.0 2955 | -9/Exiles | Warned to stay clear of 0b10 Research branches 3074 | -9/Exiles | Discovered new exit (range 14) 3794 | -9/Exiles | Build established: Mutant 4404 | -9/Exiles | Attacked by the Exiles 4432 | -9/Exiles | Core integrity fell below 50% 4482 | -9/Exiles | Core integrity fell below 20% 4492 | -9/Exiles | Destroyed 8R-AWN 4504 | -9/Exiles | Lost 6 parts (1p3n2u) 4515 | -9/Exiles | Found Prototype Ballistic Gun 4667 | -9/Exiles | Found Prototype Processor 4676 | -9/Exiles | Identified 8R-AWN's Boregun 4775 | -9/Exiles | Stole two prototypes: Flying Fortress v7, Lightpack 2.0 4775 | -9/Exiles | Entered Mines 4822 | -8/Mines | 12-ASH came to Exiles' defense 4828 | -8/Mines | Destroyed by 12-ASH with 12-ASH's Boomstick Last Messages --------------- 04671_ Dropped EMP Blaster. 04672_ Acquired Adv. Weapon Cycler. 04674_ Acquired 10 matter. 04676_ Identified 8R-AWN's Boregun. 04677_ Acquired 10 matter. 04700_ Dropped Mining Claw. 04723_ Acquired Prototype Leg. A strange signal echoes through the mines. LOCATION=UNKNOWN GOAL=ESCAPE 04822_ 12-ASH: "I came as fast as I could... Wait, it was you!" 04822_ Dropped Lrg. Storage Unit. 04824_ HV Slug penetrates 12-ASH. 04824_ 12-ASH suffers critical hit. 04824_ Destroyed Prototype Leg. 04824_ HV Slug penetrates Wall. 04825_ Plasma Injector explodes. 04826_ HV Slug penetrates Wall. 04828_ HV Slug penetrates 12-ASH. 04828_ HV Slug penetrates Wall. Map ----- +----------------------------------------------------+ | | | | | | | | | | | | | ?????????????????????????????????????????????????? | | ###??????????????????????????????????????????????? | | ##??????????####???????????????????????????????? | | #?????###### ###?????????????????????????????? | | ####### ## ##????????????????????????????? | | #????????????????????????????? | | ##????????# ?????????????????? | | ########## ###????## ?????????????????? | | ?????????# ##??# ??????????????????? | | ?????????## ## #?? ??????????????????? | | ??????????##### #?? ??????????????????? | | ??????????????# ######?# #??????????????????? | | ??????????????# ##????## #???????????????????? | | ??????????????## #??####; #???????????????????? | | ??????????????## ####;;; #???????????????????? | | ??????????????# ## ;#?#?????????????????? | | ??????????????# ;#;####??????????????? | | ??????????????## g ???????????????? | | ???????????????## = ;#??????????????????? | | ????????????????## [@ ;;#???????????????????? | | ?????????????????## ![;;;##???????????????????? | | ??????????????????## ## ##????????????????????? | | ???????????????????# #?##?????????????????????? | | ???????????????????## ##????????????????????????? | | ????????????????????# ##?????????????????????????? | | ????????????????????# #??????????????????????????? | | ????????????????????# #??????????????????????????? | | ???????????????????? #??????????????????????????? | | ????????????????????###??????????????????????????? | | ?????????????????????????????????????????????????? | | ?????????????????????????????????????????????????? | | ?????????????????????????????????????????????????? | | ?????????????????????????????????????????????????? | | ?????????????????????????????????????????????????? | | ?????????????????????????????????????????????????? | | ?????????????????????????????????????????????????? | | ?????????????????????????????????????????????????? | | ?????????????????????????????????????????????????? | | ?????????????????????????????????????????????????? | | ?????????????????????????????????????????????????? | | ?????????????????????????????????????????????????? | | ?????????????????????????????????????????????????? | | ?????????????????????????????????????????????????? | | ?????????????????????????????????????????????????? | +----------------------------------------------------+ Best States ------------- Heat Dissipation 54 Energy Generation 10 Energy Capacity 125 Matter Stores 300 Matter Capacity 300 Sight Range 16 Terrain Scan Density 10 Additional Mass Support 12 Armor Coverage 300 Core Shielding 20 Evasion (%) 40 Targeting Accuracy 8 Recoil Reduction 2 Item Schematics ----------------- Exp. Sensor Array | -9/Materials | Scanalyzed Hacking Suite | -9/Materials | Scanalyzed Robot Schematics ------------------ None Fabricated ------------ Nothing Alien Tech Used ----------------- None Achievements -------------- None Challenges ------------ None Game ------ Seed NetworkSeismicTearclaws Manual? 0 Play Time 00:30:55 Cumulative 630.0 hours Start 2020.01.22 @ 10:29:03 End 2020.01.22 @ 10:58:39 Sessions 1 Manual Loads 0 Difficulty Rogue Special Mode None Game No. 404 Rogue 404 Adventurer 0 Explorer 0 Win Type - Total 102 Types 68/6/8/10/5/1/4 Lore% 97 Gallery% 95 Achievement% 80 Wizard Run 0 Options --------- ASCII 0 Keyboard 0 Movement Numpad Keybinds 0 Fullscreen 2 Font 18/SmallcapsGlow Map View 76x50 Tactical HUD 1 Map Filters NONE Filters NONE Steam 1 RUN: 4e9e6976-6333-47e0-8855-9f7fd2508e03